[Event "Live Chess"]
[Site "Chess.com"]
[Date "2024.06.02"]
[Round "-"]
[White "willc-h99"]
[Black "NottheBishopSacrifice"]
[Result "1/2-1/2"]
[WhiteElo "2617"]
[BlackElo "2316"]
[TimeControl "300"]
[EndTime "3:28:46 PDT"]
[Termination "Game drawn by stalemate"]

1. d4 {[%clk 0:04:59.1]} 1... d5 {[%clk 0:04:58.8]} 2. Bg5 {[%clk 0:04:57.8]}
2... h6 {[%clk 0:04:56]} 3. Bh4 {[%clk 0:04:55.4]} 3... c5 {[%clk 0:04:55.6]} 4.
e3 {[%clk 0:04:52.4]} 4... Nc6 {[%clk 0:04:53.4]} 5. Nf3 {[%clk 0:04:50.5]} 5...
Nf6 {[%clk 0:04:50.7]} 6. Nbd2 {[%clk 0:04:44.3]} 6... e6 {[%clk 0:04:48.6]} 7.
c3 {[%clk 0:04:40.5]} 7... Be7 {[%clk 0:04:47.5]} 8. Bd3 {[%clk 0:04:38.6]} 8...
O-O {[%clk 0:04:45.6]} 9. O-O {[%clk 0:04:37.9]} 9... b6 {[%clk 0:04:42]} 10.
Ne5 {[%clk 0:04:34.3]} 10... Bb7 {[%clk 0:04:40.7]} 11. f4 {[%clk 0:04:31.6]}
11... Nd7 {[%clk 0:04:34.9]} 12. Bxe7 {[%clk 0:04:28.9]} 12... Qxe7 {[%clk
0:04:34.8]} 13. Rf3 {[%clk 0:04:05.1]} 13... Ndxe5 {[%clk 0:04:21.7]} 14. fxe5
{[%clk 0:04:03.4]} 14... f5 {[%clk 0:04:21.3]} 15. exf6 {[%clk 0:03:51.4]} 15...
Rxf6 {[%clk 0:04:18.3]} 16. Qe2 {[%clk 0:03:45]} 16... Raf8 {[%clk 0:04:14.6]}
17. Raf1 {[%clk 0:03:43.1]} 17... Rxf3 {[%clk 0:04:13.4]} 18. Rxf3 {[%clk
0:03:41.5]} 18... Rxf3 {[%clk 0:04:12.1]} 19. Qxf3 {[%clk 0:03:40.4]} 19... Qf6
{[%clk 0:04:02.6]} 20. Qg3 {[%clk 0:03:22.8]} 20... e5 {[%clk 0:03:41]} 21. Bb5
{[%clk 0:02:22.6]} 21... exd4 {[%clk 0:03:15.8]} 22. exd4 {[%clk 0:02:21.2]}
22... cxd4 {[%clk 0:02:27.5]} 23. Bxc6 {[%clk 0:02:03.1]} 23... Bxc6 {[%clk
0:02:11.2]} 24. h3 {[%clk 0:02:02.2]} 24... dxc3 {[%clk 0:02:08.2]} 25. bxc3
{[%clk 0:02:00.4]} 25... Kh7 {[%clk 0:02:03.8]} 26. Nb3 {[%clk 0:01:57.1]} 26...
Bb5 {[%clk 0:01:54.5]} 27. Nd4 {[%clk 0:01:55]} 27... Bc4 {[%clk 0:01:53.9]} 28.
a4 {[%clk 0:01:51.1]} 28... a6 {[%clk 0:01:41.8]} 29. Kh2 {[%clk 0:01:45.9]}
29... b5 {[%clk 0:01:34.6]} 30. axb5 {[%clk 0:01:38.9]} 30... axb5 {[%clk
0:01:33.2]} 31. Qe3 {[%clk 0:01:36.9]} 31... Qg6 {[%clk 0:01:27.3]} 32. Nf3
{[%clk 0:01:33.9]} 32... Qe4 {[%clk 0:01:23.5]} 33. Qf2 {[%clk 0:01:25.4]} 33...
Qf4+ {[%clk 0:01:19.5]} 34. g3 {[%clk 0:01:19.6]} 34... Qf6 {[%clk 0:01:14.9]}
35. Qe3 {[%clk 0:01:17]} 35... Qg6 {[%clk 0:01:08.2]} 36. h4 {[%clk 0:01:11.1]}
36... Qe4 {[%clk 0:01:06.7]} 37. Qf2 {[%clk 0:01:04.3]} 37... Qd3 {[%clk
0:00:59.4]} 38. Ne5 {[%clk 0:01:02.4]} 38... Qe2 {[%clk 0:00:53.7]} 39. Kg2
{[%clk 0:00:54.8]} 39... Qxe5 {[%clk 0:00:51.9]} 40. Kh3 {[%clk 0:00:50.5]}
40... Qe6+ {[%clk 0:00:50.3]} 41. g4 {[%clk 0:00:49.5]} 41... Qg6 {[%clk
0:00:49]} 42. h5 {[%clk 0:00:46.8]} 42... Qd3+ {[%clk 0:00:48]} 43. Kh4 {[%clk
0:00:46.1]} 43... Qe4 {[%clk 0:00:44.6]} 44. Kg3 {[%clk 0:00:33]} 44... Be2
{[%clk 0:00:42]} 45. g5 {[%clk 0:00:28.6]} 45... Qg4+ {[%clk 0:00:39]} 46. Kh2
{[%clk 0:00:28.1]} 46... Qxh5+ {[%clk 0:00:37.9]} 47. Kg1 {[%clk 0:00:26.4]}
47... Qxg5+ {[%clk 0:00:36.7]} 48. Kh2 {[%clk 0:00:26.1]} 48... Qh5+ {[%clk
0:00:35.6]} 49. Kg1 {[%clk 0:00:25]} 49... Qg4+ {[%clk 0:00:35.2]} 50. Kh2
{[%clk 0:00:24.2]} 50... Qf3 {[%clk 0:00:33.9]} 51. Qd4 {[%clk 0:00:21.2]} 51...
Bf1 {[%clk 0:00:31.2]} 52. Qd2 {[%clk 0:00:17.6]} 52... Qg2+ {[%clk 0:00:30]}
53. Qxg2 {[%clk 0:00:16.3]} 53... Bxg2 {[%clk 0:00:29.9]} 54. Kxg2 {[%clk
0:00:16.2]} 54... Kg6 {[%clk 0:00:28.9]} 55. Kf3 {[%clk 0:00:16.1]} 55... Kf5
{[%clk 0:00:28.7]} 56. Ke3 {[%clk 0:00:16]} 56... Ke5 {[%clk 0:00:28.2]} 57. Kd3
{[%clk 0:00:15.9]} 57... Kd6 {[%clk 0:00:27.4]} 58. c4 {[%clk 0:00:15.8]} 58...
bxc4+ {[%clk 0:00:26.3]} 59. Kd4 {[%clk 0:00:15.7]} 59... h5 {[%clk 0:00:24.8]}
60. Kc3 {[%clk 0:00:15.6]} 60... h4 {[%clk 0:00:24.7]} 61. Kd2 {[%clk
0:00:15.5]} 61... h3 {[%clk 0:00:24.1]} 62. Ke2 {[%clk 0:00:15.4]} 62... h2
{[%clk 0:00:24]} 63. Ke3 {[%clk 0:00:15.1]} 63... h1=Q {[%clk 0:00:23.6]} 64.
Kd4 {[%clk 0:00:15]} 64... Qh4+ {[%clk 0:00:22.1]} 65. Kc3 {[%clk 0:00:14.7]}
65... Qg3+ {[%clk 0:00:20.9]} 66. Kb4 {[%clk 0:00:14.6]} 66... Qf4 {[%clk
0:00:20.1]} 67. Kc3 {[%clk 0:00:13.9]} 67... g5 {[%clk 0:00:19.3]} 68. Kc2
{[%clk 0:00:13.3]} 68... g4 {[%clk 0:00:19.2]} 69. Kd1 {[%clk 0:00:13.1]} 69...
g3 {[%clk 0:00:19.1]} 70. Ke1 {[%clk 0:00:12.6]} 70... g2 {[%clk 0:00:19]} 71.
Ke2 {[%clk 0:00:12.3]} 71... g1=Q {[%clk 0:00:18.7]} 1/2-1/2

[Event "Live Chess"]
[Site "Chess.com"]
[Date "2024.06.02"]
[Round "-"]
[White "f4nomore"]
[Black "Pandreq"]
[Result "1/2-1/2"]
[WhiteElo "1246"]
[BlackElo "1221"]
[TimeControl "300"]
[EndTime "3:28:50 PDT"]
[Termination "Game drawn by repetition"]

1. c4 {[%clk 0:04:55.8]} 1... e5 {[%clk 0:04:58.4]} 2. Nc3 {[%clk 0:04:54.3]}
2... Nc6 {[%clk 0:04:57.6]} 3. d3 {[%clk 0:04:53.4]} 3... d6 {[%clk 0:04:56.6]}
4. Nf3 {[%clk 0:04:51.9]} 4... Be6 {[%clk 0:04:55.5]} 5. g3 {[%clk 0:04:50.4]}
5... Nf6 {[%clk 0:04:54.8]} 6. Bg2 {[%clk 0:04:49.5]} 6... Be7 {[%clk
0:04:53.8]} 7. O-O {[%clk 0:04:47.9]} 7... O-O {[%clk 0:04:53.2]} 8. b3 {[%clk
0:04:47.1]} 8... Qc8 {[%clk 0:04:47.4]} 9. a3 {[%clk 0:04:45.1]} 9... d5 {[%clk
0:04:37.4]} 10. cxd5 {[%clk 0:04:41.8]} 10... Nxd5 {[%clk 0:04:35.7]} 11. Nxd5
{[%clk 0:04:37.2]} 11... Bxd5 {[%clk 0:04:34.6]} 12. e4 {[%clk 0:04:33.9]} 12...
Be6 {[%clk 0:04:29.6]} 13. Bb2 {[%clk 0:04:30.6]} 13... Bf6 {[%clk 0:04:26.3]}
14. Rc1 {[%clk 0:04:17.1]} 14... Re8 {[%clk 0:04:12.9]} 15. Qd2 {[%clk
0:04:14.5]} 15... Bxb3 {[%clk 0:04:03.8]} 16. Rc3 {[%clk 0:04:01.8]} 16... Be6
{[%clk 0:03:58.5]} 17. Ng5 {[%clk 0:03:57.8]} 17... Bxg5 {[%clk 0:03:52.8]} 18.
Qxg5 {[%clk 0:03:53.5]} 18... f6 {[%clk 0:03:48.9]} 19. Qe3 {[%clk 0:03:40.4]}
19... Bh3 {[%clk 0:03:34.5]} 20. Rfc1 {[%clk 0:03:37.8]} 20... Nd4 {[%clk
0:03:26]} 21. Rxc7 {[%clk 0:03:30.4]} 21... Qe6 {[%clk 0:03:23.3]} 22. Bxd4
{[%clk 0:03:25.1]} 22... exd4 {[%clk 0:03:18.5]} 23. Qxd4 {[%clk 0:03:23.5]}
23... Bxg2 {[%clk 0:03:11.2]} 24. Kxg2 {[%clk 0:03:21.6]} 24... Red8 {[%clk
0:03:04.7]} 25. Qe3 {[%clk 0:03:06.8]} 25... h6 {[%clk 0:02:58.3]} 26. f4 {[%clk
0:03:00.6]} 26... b6 {[%clk 0:02:50.8]} 27. f5 {[%clk 0:02:57.4]} 27... Qd6
{[%clk 0:02:44.2]} 28. Qf3 {[%clk 0:02:52.1]} 28... Qxd3 {[%clk 0:02:41.8]} 29.
Qxd3 {[%clk 0:02:46.8]} 29... Rxd3 {[%clk 0:02:40.5]} 30. Re7 {[%clk 0:02:41.9]}
30... Rxa3 {[%clk 0:02:34.1]} 31. Rcc7 {[%clk 0:02:39.9]} 31... Ra2+ {[%clk
0:02:26.4]} 32. Kh3 {[%clk 0:02:37.9]} 32... b5 {[%clk 0:02:13.1]} 33. Rxg7+
{[%clk 0:02:34.3]} 33... Kh8 {[%clk 0:02:09.7]} 34. Rh7+ {[%clk 0:02:27.2]}
34... Kg8 {[%clk 0:02:07.6]} 35. Rxh6 {[%clk 0:02:25.2]} 35... b4 {[%clk
0:02:04.3]} 36. Rg6+ {[%clk 0:02:18.6]} 36... Kh8 {[%clk 0:01:57]} 37. Rb7
{[%clk 0:02:15.5]} 37... a5 {[%clk 0:01:53.7]} 38. Rxf6 {[%clk 0:02:10.6]} 38...
Ra3 {[%clk 0:01:46.4]} 39. Rh6+ {[%clk 0:02:01.5]} 39... Kg8 {[%clk 0:01:42.9]}
40. Rhh7 {[%clk 0:01:59.8]} 40... b3 {[%clk 0:01:37.3]} 41. Rbg7+ {[%clk
0:01:57.7]} 41... Kf8 {[%clk 0:01:36]} 42. Rf7+ {[%clk 0:01:56]} 42... Kg8
{[%clk 0:01:32.8]} 43. Rfg7+ {[%clk 0:01:54.7]} 43... Kf8 {[%clk 0:01:31.7]} 44.
Rf7+ {[%clk 0:01:42.3]} 44... Kg8 {[%clk 0:01:30.1]} 45. Rfg7+ {[%clk
0:01:40.1]} 1/2-1/2

[Event "Live Chess"]
[Site "Chess.com"]
[Date "2024.06.02"]
[Round "-"]
[White "resipsa6"]
[Black "TC2304"]
[Result "0-1"]
[WhiteElo "2023"]
[BlackElo "2338"]
[TimeControl "300"]
[EndTime "3:28:51 PDT"]
[Termination "TC2304 won by checkmate"]

1. e4 {[%clk 0:04:59.1]} 1... c6 {[%clk 0:04:55.8]} 2. d4 {[%clk 0:04:57.3]}
2... d5 {[%clk 0:04:54.4]} 3. exd5 {[%clk 0:04:56.8]} 3... cxd5 {[%clk
0:04:54.3]} 4. Nf3 {[%clk 0:04:56.3]} 4... Nf6 {[%clk 0:04:53.4]} 5. c3 {[%clk
0:04:55.4]} 5... Nc6 {[%clk 0:04:53]} 6. Be2 {[%clk 0:04:54.5]} 6... Bg4 {[%clk
0:04:52.6]} 7. O-O {[%clk 0:04:53.7]} 7... e6 {[%clk 0:04:52.2]} 8. Nbd2 {[%clk
0:04:52.8]} 8... Bd6 {[%clk 0:04:51.8]} 9. h3 {[%clk 0:04:51.9]} 9... Bh5 {[%clk
0:04:50.7]} 10. Re1 {[%clk 0:04:51.4]} 10... O-O {[%clk 0:04:50.1]} 11. Nf1
{[%clk 0:04:49.6]} 11... Ne4 {[%clk 0:04:42.8]} 12. N1d2 {[%clk 0:04:46.9]}
12... f5 {[%clk 0:04:38.8]} 13. Nxe4 {[%clk 0:04:46]} 13... fxe4 {[%clk
0:04:37.6]} 14. Bg5 {[%clk 0:04:40.3]} 14... exf3 {[%clk 0:04:24.7]} 15. Bxd8
{[%clk 0:04:39]} 15... fxe2 {[%clk 0:04:24.1]} 16. Qd3 {[%clk 0:04:29.6]} 16...
Raxd8 {[%clk 0:04:18.5]} 17. g4 {[%clk 0:04:28.8]} 17... Bg6 {[%clk 0:04:13.5]}
18. Qxe2 {[%clk 0:04:27.8]} 18... Be4 {[%clk 0:04:11.9]} 19. Rf1 {[%clk
0:04:15.2]} 19... Rf3 {[%clk 0:04:11.5]} 20. Rae1 {[%clk 0:04:13.5]} 20... Rdf8
{[%clk 0:04:04.7]} 21. Qd1 {[%clk 0:03:52.8]} 21... Rxh3 {[%clk 0:03:49.3]} 22.
Rxe4 {[%clk 0:03:51.8]} 22... dxe4 {[%clk 0:03:42.4]} 23. Qb3 {[%clk 0:03:45.9]}
23... Rf6 {[%clk 0:03:26.7]} 24. Qxb7 {[%clk 0:03:41.5]} 24... Rg6 {[%clk
0:03:07.3]} 25. Qc8+ {[%clk 0:03:19.6]} 25... Kf7 {[%clk 0:03:05.2]} 26. f3
{[%clk 0:03:07.4]} 26... Rg3+ {[%clk 0:02:58.8]} 27. Kf2 {[%clk 0:02:57.5]}
27... Rxf3+ {[%clk 0:02:57.4]} 28. Ke2 {[%clk 0:02:52.5]} 28... Ne7 {[%clk
0:02:48.7]} 29. Qb7 {[%clk 0:02:41.1]} 29... Rxg4 {[%clk 0:02:43.1]} 30. Rxf3+
{[%clk 0:02:34.2]} 30... exf3+ {[%clk 0:02:43]} 31. Kxf3 {[%clk 0:02:33.3]}
31... Rf4+ {[%clk 0:02:42.9]} 32. Ke2 {[%clk 0:02:31.9]} 32... g5 {[%clk
0:02:38.4]} 33. d5 {[%clk 0:02:24.8]} 33... exd5 {[%clk 0:02:35.1]} 34. Qxa7
{[%clk 0:02:09.4]} 34... g4 {[%clk 0:02:34]} 35. Qg1 {[%clk 0:01:50.9]} 35... g3
{[%clk 0:02:28.6]} 36. b4 {[%clk 0:01:40.4]} 36... Rf2+ {[%clk 0:02:23.4]} 37.
Kd3 {[%clk 0:01:34.1]} 37... h5 {[%clk 0:02:11.8]} 38. b5 {[%clk 0:01:24.9]}
38... h4 {[%clk 0:02:01.7]} 39. Qh1 {[%clk 0:01:21.1]} 39... g2 {[%clk
0:01:53.2]} 40. Qxh4 {[%clk 0:01:19.6]} 40... g1=Q {[%clk 0:01:49.7]} 41. Qh7+
{[%clk 0:01:12.1]} 41... Qg7 {[%clk 0:01:46.8]} 42. Qh1 {[%clk 0:01:02.2]} 42...
Qg6+ {[%clk 0:01:41.1]} 43. Kd4 {[%clk 0:01:01.2]} 43... Rd2+ {[%clk 0:01:37.4]}
44. Ke3 {[%clk 0:00:59.5]} 44... Qd3# {[%clk 0:01:36.6]} 0-1

[Event "Live Chess"]
[Site "Chess.com"]
[Date "2024.06.02"]
[Round "-"]
[White "slava_ukr"]
[Black "Bunny55"]
[Result "1-0"]
[WhiteElo "2415"]
[BlackElo "1160"]
[TimeControl "300"]
[EndTime "3:28:51 PDT"]
[Termination "slava_ukr won by resignation"]

1. e4 {[%clk 0:04:57.3]} 1... c5 {[%clk 0:04:58.1]} 2. d4 {[%clk 0:04:56.6]}
2... cxd4 {[%clk 0:04:55.6]} 3. c3 {[%clk 0:04:56]} 3... dxc3 {[%clk 0:04:53.6]}
4. Nxc3 {[%clk 0:04:55.3]} 4... Nc6 {[%clk 0:04:52]} 5. Bc4 {[%clk 0:04:54.4]}
5... Nf6 {[%clk 0:04:50.7]} 6. Nf3 {[%clk 0:04:52.5]} 6... e5 {[%clk 0:04:49.6]}
7. Ng5 {[%clk 0:04:44.2]} 7... Ke7 {[%clk 0:04:40.9]} 8. Nxf7 {[%clk 0:04:40.4]}
8... d5 {[%clk 0:04:36.9]} 9. Nxd8 {[%clk 0:04:38.3]} 9... Be6 {[%clk 0:04:33]}
10. Nxe6 {[%clk 0:04:36.3]} 10... Kxe6 {[%clk 0:04:30.9]} 11. exd5+ {[%clk
0:04:35.3]} 1-0

[Event "Live Chess"]
[Site "Chess.com"]
[Date "2024.06.02"]
[Round "-"]
[White "Ferrarifan27"]
[Black "ZatixMajor"]
[Result "1/2-1/2"]
[WhiteElo "2150"]
[BlackElo "2033"]
[TimeControl "300"]
[EndTime "3:28:52 PDT"]
[Termination "Game drawn by stalemate"]

1. e4 {[%clk 0:04:58.1]} 1... c5 {[%clk 0:04:59.5]} 2. Nf3 {[%clk 0:04:48]} 2...
Nc6 {[%clk 0:04:58.6]} 3. b4 {[%clk 0:04:46.7]} 3... e6 {[%clk 0:04:40.6]} 4.
bxc5 {[%clk 0:04:44.3]} 4... Bxc5 {[%clk 0:04:39.1]} 5. d4 {[%clk 0:04:43.6]}
5... Be7 {[%clk 0:04:35.1]} 6. Bb2 {[%clk 0:04:39.7]} 6... Nf6 {[%clk
0:04:34.2]} 7. e5 {[%clk 0:04:28.6]} 7... Nd5 {[%clk 0:04:29]} 8. Bd3 {[%clk
0:04:24.2]} 8... Ncb4 {[%clk 0:04:20.4]} 9. Be4 {[%clk 0:04:17.2]} 9... f5
{[%clk 0:04:11.8]} 10. exf6 {[%clk 0:04:14.7]} 10... Nxf6 {[%clk 0:04:10.5]} 11.
Bd3 {[%clk 0:04:09.7]} 11... Nxd3+ {[%clk 0:04:08.6]} 12. Qxd3 {[%clk
0:04:09.6]} 12... O-O {[%clk 0:04:07.4]} 13. O-O {[%clk 0:04:08.3]} 13... b6
{[%clk 0:04:05.8]} 14. Nc3 {[%clk 0:04:06.8]} 14... a5 {[%clk 0:04:04.7]} 15.
Rfe1 {[%clk 0:04:03.9]} 15... Ba6 {[%clk 0:04:02.4]} 16. Qe3 {[%clk 0:04:00.8]}
16... Rc8 {[%clk 0:03:57.7]} 17. Rac1 {[%clk 0:03:55]} 17... Bb7 {[%clk
0:03:54.6]} 18. Ng5 {[%clk 0:03:48]} 18... Rxc3 {[%clk 0:03:43.9]} 19. Qxc3
{[%clk 0:03:34.1]} 19... Nd5 {[%clk 0:03:41.3]} 20. Nxe6 {[%clk 0:03:21.2]}
20... dxe6 {[%clk 0:03:30.3]} 21. Qh3 {[%clk 0:03:19.7]} 21... Nf4 {[%clk
0:03:25.6]} 22. Qg4 {[%clk 0:03:18.4]} 22... Qd5 {[%clk 0:03:12.1]} 23. f3
{[%clk 0:03:05.7]} 23... h5 {[%clk 0:02:59.3]} 24. Qg3 {[%clk 0:02:59.6]} 24...
Bd6 {[%clk 0:02:56.1]} 25. Qh4 {[%clk 0:02:47.6]} 25... Nxg2 {[%clk 0:02:46.7]}
26. Qh3 {[%clk 0:02:23.9]} 26... Nxe1 {[%clk 0:02:28.9]} 27. Rxe1 {[%clk
0:02:20.5]} 27... Rxf3 {[%clk 0:02:19.2]} 28. Qxe6+ {[%clk 0:02:17.1]} 28...
Qxe6 {[%clk 0:02:18.3]} 29. Rxe6 {[%clk 0:02:16.2]} 29... Bf4 {[%clk 0:02:13.5]}
30. Rxb6 {[%clk 0:02:03.7]} 30... Be3+ {[%clk 0:02:09.2]} 31. Kg2 {[%clk
0:01:56.2]} 31... Rf2+ {[%clk 0:01:45.3]} 32. Kg3 {[%clk 0:01:52.8]} 32... h4+
{[%clk 0:01:42.8]} 33. Kxh4 {[%clk 0:01:48.1]} 33... Bf3 {[%clk 0:01:12]} 34.
Kg3 {[%clk 0:01:38.2]} 34... Rf1 {[%clk 0:01:11.3]} 35. Rb3 {[%clk 0:01:29.4]}
35... Bf4+ {[%clk 0:01:01.6]} 36. Kxf4 {[%clk 0:01:26.1]} 36... Bd5+ {[%clk
0:01:00.5]} 37. Ke5 {[%clk 0:01:22]} 37... Bxb3 {[%clk 0:01:00]} 38. axb3 {[%clk
0:01:20.5]} 38... Rf2 {[%clk 0:00:58.9]} 39. d5 {[%clk 0:01:14.8]} 39... Rxc2
{[%clk 0:00:57.8]} 40. Bd4 {[%clk 0:01:10.4]} 40... Rxh2 {[%clk 0:00:50.1]} 41.
d6 {[%clk 0:00:58.8]} 41... Kf7 {[%clk 0:00:49]} 42. Bb6 {[%clk 0:00:48.9]}
42... Rh5+ {[%clk 0:00:44]} 43. Kd4 {[%clk 0:00:46.4]} 43... Ke6 {[%clk
0:00:39.4]} 44. Bc5 {[%clk 0:00:42.5]} 44... Rd5+ {[%clk 0:00:33.7]} 45. Kc4
{[%clk 0:00:41.1]} 45... g5 {[%clk 0:00:32.6]} 46. Kb5 {[%clk 0:00:34.1]} 46...
g4 {[%clk 0:00:30.6]} 47. Kc6 {[%clk 0:00:33.3]} 47... g3 {[%clk 0:00:26.6]} 48.
Bb6 {[%clk 0:00:23.1]} 48... Rxd6+ {[%clk 0:00:24.9]} 49. Kc7 {[%clk 0:00:22.3]}
49... Rxb6 {[%clk 0:00:21.1]} 50. Kxb6 {[%clk 0:00:21.5]} 50... g2 {[%clk
0:00:21]} 51. Kxa5 {[%clk 0:00:21]} 51... g1=Q {[%clk 0:00:20.6]} 52. b4 {[%clk
0:00:20.9]} 52... Qa7+ {[%clk 0:00:19.6]} 53. Kb5 {[%clk 0:00:20]} 53... Kd5
{[%clk 0:00:19.2]} 1/2-1/2

[Event "Live Chess"]
[Site "Chess.com"]
[Date "2024.06.02"]
[Round "-"]
[White "StoreySniper"]
[Black "Bodhanas"]
[Result "0-1"]
[WhiteElo "2498"]
[BlackElo "2275"]
[TimeControl "300"]
[EndTime "3:29:15 PDT"]
[Termination "Bodhanas won on time"]

1. e4 {[%clk 0:04:57.2]} 1... d6 {[%clk 0:04:57.9]} 2. d4 {[%clk 0:04:55.8]}
2... c6 {[%clk 0:04:55.4]} 3. Nf3 {[%clk 0:04:54]} 3... Qc7 {[%clk 0:04:54.3]}
4. c4 {[%clk 0:04:52.1]} 4... Bg4 {[%clk 0:04:51.1]} 5. Nc3 {[%clk 0:04:50.8]}
5... Nd7 {[%clk 0:04:49.4]} 6. h3 {[%clk 0:04:47.3]} 6... Bxf3 {[%clk 0:04:48]}
7. gxf3 {[%clk 0:04:44.7]} 7... e5 {[%clk 0:04:46.1]} 8. d5 {[%clk 0:04:43.2]}
8... Ngf6 {[%clk 0:04:43.3]} 9. Be3 {[%clk 0:04:38.7]} 9... Nb6 {[%clk
0:04:38.5]} 10. Rc1 {[%clk 0:04:34.7]} 10... Be7 {[%clk 0:04:31.6]} 11. Qd2
{[%clk 0:04:29.6]} 11... a6 {[%clk 0:04:24.8]} 12. b3 {[%clk 0:04:23.9]} 12...
Rc8 {[%clk 0:04:21.5]} 13. h4 {[%clk 0:04:20.3]} 13... h5 {[%clk 0:04:18.3]} 14.
Bh3 {[%clk 0:04:19]} 14... Rd8 {[%clk 0:04:14.8]} 15. f4 {[%clk 0:04:08.4]}
15... exf4 {[%clk 0:04:07.7]} 16. Bxf4 {[%clk 0:04:07.6]} 16... Ng4 {[%clk
0:04:00.1]} 17. Bg5 {[%clk 0:03:32]} 17... Ne5 {[%clk 0:03:54.9]} 18. Qe3 {[%clk
0:03:21.7]} 18... Bxg5 {[%clk 0:03:49]} 19. hxg5 {[%clk 0:03:19.6]} 19... c5
{[%clk 0:03:42.2]} 20. f4 {[%clk 0:03:16.7]} 20... Ng6 {[%clk 0:03:40.8]} 21.
O-O {[%clk 0:03:07]} 21... O-O {[%clk 0:03:33.8]} 22. Qf3 {[%clk 0:03:00.4]}
22... h4 {[%clk 0:03:26.5]} 23. Bf5 {[%clk 0:02:48.2]} 23... Rfe8 {[%clk
0:03:17.4]} 24. Rc2 {[%clk 0:02:46.5]} 24... Nd7 {[%clk 0:03:13.2]} 25. Rh2
{[%clk 0:02:44.3]} 25... Ndf8 {[%clk 0:03:12.2]} 26. Qg4 {[%clk 0:02:32.4]}
26... Qa5 {[%clk 0:03:01.7]} 27. Rf3 {[%clk 0:02:27.8]} 27... b5 {[%clk
0:02:54.8]} 28. Rfh3 {[%clk 0:02:19]} 28... b4 {[%clk 0:02:51.3]} 29. Na4 {[%clk
0:02:03.3]} 29... Qc7 {[%clk 0:02:44.8]} 30. Rxh4 {[%clk 0:02:00.6]} 30... Nxh4
{[%clk 0:02:40.6]} 31. Qxh4 {[%clk 0:01:59.7]} 31... Ng6 {[%clk 0:02:40.2]} 32.
Qh7+ {[%clk 0:01:42.9]} 32... Kf8 {[%clk 0:02:38.8]} 33. Bxg6 {[%clk 0:01:40.7]}
33... fxg6 {[%clk 0:02:37.7]} 34. Qxg6 {[%clk 0:01:40]} 34... Qf7 {[%clk
0:02:36.6]} 35. Qf5 {[%clk 0:00:46]} 35... Qxf5 {[%clk 0:02:31.6]} 36. exf5
{[%clk 0:00:45.4]} 36... Re1+ {[%clk 0:02:30.3]} 37. Kf2 {[%clk 0:00:44.7]}
37... Ra1 {[%clk 0:02:29]} 38. Kf3 {[%clk 0:00:44]} 38... Rf1+ {[%clk
0:02:26.1]} 39. Kg4 {[%clk 0:00:42.2]} 39... Rg1+ {[%clk 0:02:22.7]} 40. Kf3
{[%clk 0:00:38.7]} 40... Rf1+ {[%clk 0:02:21.7]} 41. Kg3 {[%clk 0:00:35.8]}
41... Rg1+ {[%clk 0:02:20.4]} 42. Kf2 {[%clk 0:00:34.7]} 42... Ra1 {[%clk
0:02:18.6]} 43. Rh8+ {[%clk 0:00:27.9]} 43... Ke7 {[%clk 0:02:17.2]} 44. f6+
{[%clk 0:00:27.2]} 44... gxf6 {[%clk 0:02:14]} 45. gxf6+ {[%clk 0:00:27.1]}
45... Kd7 {[%clk 0:02:12.3]} 46. Nb6+ {[%clk 0:00:21.9]} 46... Kc7 {[%clk
0:02:11.6]} 47. Rxd8 {[%clk 0:00:16.9]} 47... Kxd8 {[%clk 0:02:10.4]} 48. Kf3
{[%clk 0:00:14.2]} 48... Rxa2 {[%clk 0:02:08.7]} 49. Kg4 {[%clk 0:00:13.5]}
49... a5 {[%clk 0:02:07]} 50. Kf5 {[%clk 0:00:12.8]} 50... a4 {[%clk 0:02:01.5]}
51. Nxa4 {[%clk 0:00:09.1]} 51... Rxa4 {[%clk 0:01:59.8]} 52. bxa4 {[%clk
0:00:08.7]} 52... b3 {[%clk 0:01:57.7]} 53. Ke6 {[%clk 0:00:02.4]} 53... Ke8
{[%clk 0:01:55.4]} 54. f7+ {[%clk 0:00:00.6]} 54... Kf8 {[%clk 0:01:54.5]} 0-1

[Event "Live Chess"]
[Site "Chess.com"]
[Date "2024.06.02"]
[Round "-"]
[White "Crowded_House"]
[Black "Brooms1989"]
[Result "0-1"]
[WhiteElo "1649"]
[BlackElo "1239"]
[TimeControl "300"]
[EndTime "3:29:15 PDT"]
[Termination "Brooms1989 won by resignation"]

1. d4 {[%clk 0:04:56]} 1... Nf6 {[%clk 0:04:58.4]} 2. Bg5 {[%clk 0:04:55.4]}
2... g6 {[%clk 0:04:56.9]} 3. c3 {[%clk 0:04:52.3]} 3... Bg7 {[%clk 0:04:55.9]}
4. e3 {[%clk 0:04:51.7]} 4... O-O {[%clk 0:04:54.7]} 5. Bd3 {[%clk 0:04:50.6]}
5... d6 {[%clk 0:04:53.1]} 6. Nf3 {[%clk 0:04:49.1]} 6... h6 {[%clk 0:04:50]} 7.
Bh4 {[%clk 0:04:47.1]} 7... c5 {[%clk 0:04:47.4]} 8. dxc5 {[%clk 0:04:43.3]}
8... dxc5 {[%clk 0:04:45.9]} 9. Bc2 {[%clk 0:04:42.7]} 9... Nc6 {[%clk
0:04:43.2]} 10. O-O {[%clk 0:04:39.7]} 10... b6 {[%clk 0:04:33.7]} 11. Nbd2
{[%clk 0:04:36.4]} 11... Bb7 {[%clk 0:04:32.2]} 12. Ne4 {[%clk 0:04:20.8]} 12...
Nxe4 {[%clk 0:04:25.9]} 13. Bxe4 {[%clk 0:04:18.9]} 13... g5 {[%clk 0:04:24.3]}
14. Bg3 {[%clk 0:04:12.9]} 14... f5 {[%clk 0:04:22.6]} 15. Bxc6 {[%clk
0:03:58.5]} 15... Bxc6 {[%clk 0:04:22.5]} 16. Nd2 {[%clk 0:03:48.5]} 16... e5
{[%clk 0:04:12]} 17. h3 {[%clk 0:03:43.7]} 17... f4 {[%clk 0:04:06.4]} 18. exf4
{[%clk 0:03:31.4]} 18... exf4 {[%clk 0:04:06.3]} 19. Bh2 {[%clk 0:03:29.6]}
19... Qd5 {[%clk 0:04:02.4]} 20. Nf3 {[%clk 0:03:26.6]} 20... Rad8 {[%clk
0:03:52.1]} 21. Qxd5+ {[%clk 0:03:25.6]} 21... Rxd5 {[%clk 0:03:49.6]} 22. Rad1
{[%clk 0:03:25.2]} 22... Rfd8 {[%clk 0:03:47]} 23. Rxd5 {[%clk 0:03:22.5]} 23...
Rxd5 {[%clk 0:03:46.9]} 24. Re1 {[%clk 0:03:15.1]} 24... Kf8 {[%clk 0:03:43.4]}
25. Kf1 {[%clk 0:03:00.5]} 25... Rd3 {[%clk 0:03:37.1]} 26. Re6 {[%clk
0:02:53.9]} 26... Bxf3 {[%clk 0:03:33.8]} 27. gxf3 {[%clk 0:02:51.4]} 27... Rxf3
{[%clk 0:03:32.8]} 28. Rc6 {[%clk 0:02:45.7]} 28... Rxh3 {[%clk 0:03:19.8]} 29.
Bg1 {[%clk 0:02:33.9]} 29... Rd3 {[%clk 0:03:14]} 30. Rc8+ {[%clk 0:02:29.7]}
30... Kf7 {[%clk 0:03:11.2]} 31. Rc7+ {[%clk 0:02:28.9]} 31... Kf6 {[%clk
0:03:09.2]} 32. Rxa7 {[%clk 0:02:27.8]} 32... Rd2 {[%clk 0:03:03.7]} 33. b3
{[%clk 0:02:23.2]} 33... Bf8 {[%clk 0:02:57.2]} 34. c4 {[%clk 0:02:12.5]} 34...
h5 {[%clk 0:02:55.7]} 35. Ra6 {[%clk 0:02:09.7]} 35... Rd6 {[%clk 0:02:53.9]}
36. f3 {[%clk 0:02:04.5]} 36... g4 {[%clk 0:02:51.4]} 37. fxg4 {[%clk
0:01:55.2]} 37... hxg4 {[%clk 0:02:51.3]} 38. Bxc5 {[%clk 0:01:54.3]} 38... bxc5
{[%clk 0:02:41.4]} 39. Rxd6+ {[%clk 0:01:50.5]} 39... Bxd6 {[%clk 0:02:38.4]}
40. a4 {[%clk 0:01:48.4]} 40... Bc7 {[%clk 0:02:35.3]} 41. Ke2 {[%clk
0:01:45.9]} 41... Ke5 {[%clk 0:02:34.5]} 42. Kd3 {[%clk 0:01:44.3]} 42... g3
{[%clk 0:02:33.3]} 43. Ke2 {[%clk 0:01:43.4]} 43... Ke4 {[%clk 0:02:32.1]} 44.
Kf1 {[%clk 0:01:42.2]} 44... Kf3 {[%clk 0:02:27.2]} 45. Kg1 {[%clk 0:01:37]}
45... Ke2 {[%clk 0:02:26.2]} 46. Kg2 {[%clk 0:01:35.9]} 46... f3+ {[%clk
0:02:25.6]} 47. Kg1 {[%clk 0:01:34.5]} 47... f2+ {[%clk 0:02:25.5]} 0-1